[Event "FIDE World Cadets GU12 2022"]
[Site "Batumi"]
[Date "2022.09.23"]
[Round "7.1"]
[White "Mgeladze, Kesaria"]
[Black "Kaliakhmet, Elnaz"]
[Result "1-0"]
[ECO "D00"]
[WhiteElo "1771"]
[BlackElo "1864"]
[Annotator "NA RC COMBH"]
[PlyCount "69"]
[EventDate "2022.09.16"]
[EventType "swiss"]
[EventCountry "GEO"]
[SourceTitle "playchess.com"]
[Source "ChessBase"]
[SourceQuality "1"]
[TimeControl "5400+30"]

1. d4 {[%emt 0:01:00]} Nf6 {[%emt 0:01:00]} 2. Nc3 {[%emt 0:00:30]} d5 {[%emt 0:00:30]} 3. Bf4 {[%emt 0:00:00]} Bf5 {[%emt 0:02:30]} 4. f3 {[%emt 0:00:00]} e6 {[%emt 0:04:30]} 5. g4 {[%emt 0:00:00]} Bg6 {[%emt 0:00:30]} 6. h4 {[%emt 0:00:00]} h5 {[%emt 0:01:30]} 7. g5 {[%emt 0:00:30]} Ng8 {[%emt 0:15:30]} 8. e4 {[%emt 0:03:30]} dxe4 {[%emt 0:05:30]} 9. fxe4 {[%emt 0:03:30]} Bb4 {[%emt 0:07:30]} 10. Bg2 {[%emt 0:03:30]} Ne7 {[%emt 0:02:30]} 11. Nge2 {[%emt 0:01:30]} c6 {[%emt 0:09:30]} 12. Bf3 {[%emt 0:09:30]} Bd6 {[%emt 0:04:30]} 13. Qd2 {[%emt 0:08:30]} Qc7 {[%emt 0:05:30]} 14. O-O-O {[%emt 0:06:30]} Nd7 {[%emt 0:02:30]} 15. d5 {[%emt 0:11:30]} e5 {[%emt 0:20:50]} 16. dxc6 {[%emt 0:08:30]} bxc6 {[%emt 0:00:09]} 17. Qxd6 {[%emt 0:01:30]} Qxd6 {[%emt 0:00:30]} 18. Rxd6 {[%emt 0:00:30]} exf4 {[%emt 0:00:00]} 19. Nxf4 {[%emt 0:02:30]} Ne5 {[%emt 0:05:21]} 20. Be2 {[%emt 0:00:30]} Rb8 {[%emt 0:02:08]} 21. Rhd1 {[%emt 0:02:30]} Ng4 {[%emt 0:04:51]} 22. Nb5 {[%emt 0:15:30]} O-O {[%emt 0:02:28]} 23. Nxg6 {[%emt 0:00:30]} Nxg6 {[%emt 0:00:33]} 24. Bxg4 {[%emt 0:00:30]} hxg4 {[%emt 0:00:30]} 25. Nxa7 {[%emt 0:00:00]} Ra8 {[%emt 0:00:28]} 26. Nxc6 {[%emt 0:01:00]} Rxa2 {[%emt 0:00:14]} 27. Kb1 {[%emt 0:01:26]} Ra4 {[%emt 0:00:33]} 28. h5 {[%emt 0:00:00]} Nf4 {[%emt 0:00:36]} 29. Ne7+ {[%emt 0:01:21]} Kh8 {[%emt 0:01:36]} 30. g6 {[%emt 0:00:43]} fxg6 {[%emt 0:00:55]} 31. hxg6 {[%emt 0:00:04]} Ra7 {[%emt 0:00:45]} 32. Rd8 {[%emt 0:00:30]} Ra8 {[%emt 0:00:30]} 33. Rh1+ {[%emt 0:00:04]} Nh3 {[%emt 0:00:00]} 34. Rd5 {[%emt 0:00:03]} Ra5 {[%emt 0:00:47]} 35. Rxa5 {[%emt 0:00:30]} 1-0

[Event "FIDE World Cadets GU12 2022"]
[Site "Batumi"]
[Date "2022.09.23"]
[Round "7.2"]
[White "Ismayilova, Khanim"]
[Black "Shubhi Gupta"]
[Result "1-0"]
[ECO "D40"]
[WhiteElo "1901"]
[BlackElo "1733"]
[Annotator "TA"]
[PlyCount "59"]
[EventDate "2022.09.16"]
[EventType "swiss"]
[EventCountry "GEO"]
[SourceTitle "playchess.com"]
[Source "ChessBase"]
[SourceQuality "1"]
[TimeControl "5400+30"]

{[%evp 17,58,23,17,-11,-8,-33,-31,-29,-26,-32,-33,-43,-27,-27,-22,-60,-57,-36,-41,-63,-2,-31,83,56,206,199,628,620,633,610,964,852,1368,1446,1437,1425,1327,1333,29990,2925,29998,29999,29999]} 1. c4 {[%emt 0:01:00]} e6 {[%emt 0:01:00]} 2. Nc3 {[%emt 0:00:30]} d5 {[%emt 0:00:30]} 3. e3 {[%emt 0:00:00]} Nf6 {[%emt 0:01:30]} 4. d4 {[%emt 0:00:00]} c5 {[%emt 0:00:30]} 5. Nf3 {[%emt 0:00:30]} Nc6 {[%emt 0:00:30]} 6. a3 {[%emt 0:00:30]} a6 {[%emt 0:01:30]} 7. dxc5 {[%emt 0:04:30]} Bxc5 {[%emt 0:00:30]} 8. b4 {[%emt 0:00:00]} Ba7 {[%emt 0:00:30]} 9. Bb2 {[%emt 0:00:00]} O-O {[%emt 0:03:30]} 10. c5 {[%emt 0:09:30] D40: Queen's Gambit Declined: Semi-Tarrasch with 5 e3.} e5 {[%emt 0:11:30]} 11. Na4 {[%emt 0:02:30]} Re8 {[%emt 0:21:30]} 12. Be2 {[%emt 0:00:30] Black is slightly better.} Qc7 {[%emt 0:08:30]} 13. O-O {[%emt 0:03:30] [#]} Be6 $146 {[%emt 0:01:30]} ({Predecessor:} 13... Bf5 14. Nh4 Bg6 15. f4 Be4 16. Bd3 Rad8 17. Bxe4 dxe4 18. Qe2 g6 19. fxe5 Nd5 {0-1 (34) Turk,T (1991)-Jelica,M (2099) Sibenik 2016}) 14. Qc2 {[%emt 0:08:30]} Rad8 {[%emt 0:02:30]} 15. Rad1 {[%emt 0:06:30]} Bb8 {[%emt 0:04:30] Threatens to win with ...e4.} 16. Ng5 {[%emt 0:05:30]} e4 {[%emt 0:05:30][%csl Gb8][%cal Rc7h2]} 17. g3 {[%emt 0:00:30]} Bf5 {[%emt 0:02:30] White must now prevent ...Qe7.} 18. f4 {[%emt 0:15:30]} h6 {[%emt 0:11:30]} (18... Ba7 $15) 19. Nb6 $1 $11 {[%emt 0:01:30] Strongly threatening Bxf6.} (19. Bxf6 $2 gxf6 20. Nc3 (20. g4 hxg5 21. gxf5 d4 $17) 20... Ne7 21. Nxf7 (21. g4 $2 fxg5 22. gxf5 Nxf5 $19) 21... Kxf7 $19) 19... d4 {[%emt 0:04:27]} (19... hxg5 $15 {keeps the upper hand.} 20. Bxf6 gxf6 21. Nxd5 Rxd5 $1 22. Rxd5 Bh3) 20. exd4 $16 {[%emt 0:04:30][%cal Od4d5] Hoping for d5! White is more active.} hxg5 {[%emt 0:01:47] [#] A mistake that costs the game.} ({Black should try} 20... Ba7 $1 $14) 21. d5 $1 $18 {[%emt 0:04:30]} ({Inferior is} 21. fxg5 Nd5 22. Nxd5 (22. Rxf5 $2 Ne3 $19) 22... Rxd5 $17) 21... Nxd5 {[%emt 0:04:07]} (21... Qe7) 22. Nxd5 {[%emt 0:01:30]} Rxd5 {[%emt 0:05:08]} 23. Rxd5 {[%emt 0:01:30]} Ne7 {[%emt 0:00:50]} 24. Rd6 {[%emt 0:07:30]} Ba7 {[%emt 0:02:19] [#]} 25. Qc3 $1 {[%emt 0:05:04][%csl Gb2][%cal Rc3g7]} f6 {[%emt 0:01:10] [#]} 26. Rxf6 $1 {[%emt 0:05:15][%cal Of6f8][%mdl 512] White wants to mate with Rf8+!} Nd5 {[%emt 0:01:36]} (26... Bxc5+ 27. Kh1) 27. Bc4 {[%emt 0:00:52]} gxf6 {[%emt 0:02:31]} 28. Qxf6 {[%emt 0:01:22]} (28. Bxd5+ $142 Kh7 29. Qxf6 Bg6 30. f5 Bh5 31. Qxg5 Bxc5+ 32. bxc5 Qxc5+ 33. Rf2) 28... Be6 {[%emt 0:00:57]} 29. Qh8+ {[%emt 0:00:30]} Kf7 {[%emt 0:00:30]} 30. Qg7# {[%emt 0:00:30] Weighted Error Value: White=0.08 (flawless) /Black=1.13} 1-0

[Event "FIDE World Cadets GU12 2022"]
[Site "Batumi"]
[Date "2022.09.23"]
[Round "7.3"]
[White "Merkulova, Victoria"]
[Black "Kholyavko, Mariya"]
[Result "1-0"]
[ECO "B31"]
[WhiteElo "1715"]
[BlackElo "1421"]
[Annotator "NA RC COMBH"]
[PlyCount "97"]
[EventDate "2022.09.16"]
[EventType "swiss"]
[EventCountry "GEO"]
[SourceTitle "playchess.com"]
[Source "ChessBase"]
[SourceQuality "1"]
[TimeControl "5400+30"]

1. e4 {[%emt 0:01:00]} c5 {[%emt 0:01:00]} 2. Nf3 {[%emt 0:00:30]} Nc6 {[%emt 0:00:30]} 3. Bb5 {[%emt 0:00:30]} g6 {[%emt 0:00:30]} 4. O-O {[%emt 0:00:30]} Bg7 {[%emt 0:00:30]} 5. c3 {[%emt 0:00:30]} Nf6 {[%emt 0:00:30]} 6. Re1 {[%emt 0:00:30]} O-O {[%emt 0:00:00]} 7. h3 {[%emt 0:00:00]} h6 {[%emt 0:00:00]} 8. e5 {[%emt 0:09:00]} Nd5 {[%emt 0:00:00]} 9. d4 {[%emt 0:01:30]} cxd4 {[%emt 0:00:00]} 10. cxd4 {[%emt 0:08:30]} d6 {[%emt 0:00:00]} 11. Nc3 {[%emt 0:05:30]} Nxc3 {[%emt 0:01:00]} 12. bxc3 {[%emt 0:00:30]} a6 {[%emt 0:00:30]} 13. Bxc6 {[%emt 0:05:30]} bxc6 {[%emt 0:00:00]} 14. Ba3 {[%emt 0:00:30]} Be6 {[%emt 0:07:00]} 15. Qe2 {[%emt 0:08:30]} Rb8 {[%emt 0:04:30]} 16. Nd2 {[%emt 0:03:30]} Qa5 {[%emt 0:08:30]} 17. Bb4 {[%emt 0:01:30]} Rxb4 {[%emt 0:00:30]} 18. cxb4 {[%emt 0:00:30]} Qxb4 {[%emt 0:00:00]} 19. Qe3 {[%emt 0:07:30]} Rd8 {[%emt 0:14:00]} 20. a3 {[%emt 0:04:30]} Qa5 {[%emt 0:02:30]} 21. Rad1 {[%emt 0:05:30]} Kh7 {[%emt 0:05:30]} 22. exd6 {[%emt 0:04:30]} Rxd6 {[%emt 0:01:30]} 23. Nf3 {[%emt 0:04:30]} Qa4 {[%emt 0:02:30]} 24. Rd2 {[%emt 0:02:30]} Bf6 {[%emt 0:05:30]} 25. Rc1 {[%emt 0:05:30]} Bd5 {[%emt 0:02:30]} 26. Ne5 {[%emt 0:04:39]} Be6 {[%emt 0:02:30]} 27. Rc5 {[%emt 0:01:49]} Rd5 {[%emt 0:04:30]} 28. Rxd5 {[%emt 0:04:34]} Bxd5 {[%emt 0:00:30]} 29. Nd7 {[%emt 0:01:25]} Qc4 {[%emt 0:01:30]} 30. Nxf6+ {[%emt 0:00:30]} exf6 {[%emt 0:00:00]} 31. Rb2 {[%emt 0:01:39]} Be6 {[%emt 0:05:00]} 32. Qf4 {[%emt 0:02:26]} g5 {[%emt 0:02:30]} 33. Qe4+ {[%emt 0:01:31]} f5 {[%emt 0:00:30]} 34. Qe3 {[%emt 0:00:02]} Kg6 {[%emt 0:02:30]} 35. Rb8 {[%emt 0:01:39]} Qc2 {[%emt 0:00:30]} 36. Re8 {[%emt 0:03:14]} Bd5 {[%emt 0:03:30]} 37. Rg8+ {[%emt 0:00:48]} Kh7 {[%emt 0:00:00]} 38. Rd8 {[%emt 0:00:39]} Qd1+ {[%emt 0:04:00]} 39. Kh2 {[%emt 0:00:30]} Qf1 {[%emt 0:00:00]} 40. f3 {[%emt 0:00:16]} Qd1 {[%emt 0:01:00]} 41. Qe5 {[%emt 0:00:51]} Qd2 {[%emt 0:00:30]} 42. Qxf5+ {[%emt 0:00:52]} Kg7 {[%emt 0:00:30]} 43. Qe5+ {[%emt 0:00:00]} Kh7 {[%emt 0:01:30]} 44. Rh8+ {[%emt 0:00:29]} Kg6 {[%emt 0:00:30]} 45. Rg8+ {[%emt 0:00:30]} Kh5 {[%emt 0:00:00]} 46. Qf5 {[%emt 0:01:01]} Be6 {[%emt 0:00:00]} 47. Qe4 {[%emt 0:00:28]} a5 {[%emt 0:01:30]} 48. Kg3 {[%emt 0:00:29]} a4 {[%emt 0:00:30]} 49. Qg4+ {[%emt 0:00:07]} 1-0

[Event "FIDE World Cadets GU12 2022"]
[Site "Batumi"]
[Date "2022.09.23"]
[Round "7.4"]
[White "Khafizova, Diana"]
[Black "Yousefian, Maedeh"]
[Result "0-1"]
[ECO "D02"]
[WhiteElo "1411"]
[BlackElo "1765"]
[Annotator "NA RC COMBH"]
[PlyCount "116"]
[EventDate "2022.09.16"]
[EventType "swiss"]
[EventCountry "GEO"]
[SourceTitle "playchess.com"]
[Source "ChessBase"]
[SourceQuality "1"]
[TimeControl "5400+30"]

1. d4 {[%emt 0:01:00]} Nf6 {[%emt 0:01:00]} 2. Bf4 {[%emt 0:00:30]} e6 {[%emt 0:00:30]} 3. e3 {[%emt 0:00:30]} c5 {[%emt 0:00:30]} 4. c3 {[%emt 0:00:00]} Be7 {[%emt 0:00:00]} 5. Nf3 {[%emt 0:00:00]} b6 {[%emt 0:00:00]} 6. Bd3 {[%emt 0:00:30]} Bb7 {[%emt 0:02:30]} 7. Nbd2 {[%emt 0:00:30]} O-O {[%emt 0:10:30]} 8. h3 {[%emt 0:02:30]} d5 {[%emt 0:05:30]} 9. O-O {[%emt 0:00:30]} Nc6 {[%emt 0:02:30]} 10. Re1 {[%emt 0:01:30]} Bd6 {[%emt 0:05:30]} 11. Ne5 {[%emt 0:02:30]} Qc7 {[%emt 0:12:30]} 12. Ndf3 {[%emt 0:02:30]} h6 {[%emt 0:10:30]} 13. Rc1 {[%emt 0:03:30]} c4 {[%emt 0:06:30]} 14. Bb1 {[%emt 0:00:30]} b5 {[%emt 0:00:30]} 15. Nxc6 {[%emt 0:02:30]} Bxc6 {[%emt 0:02:30]} 16. Ne5 {[%emt 0:01:30]} Nd7 {[%emt 0:06:30]} 17. Qh5 {[%emt 0:07:30]} f5 {[%emt 0:00:30]} 18. Bxh6 {[%emt 0:04:30]} Nxe5 {[%emt 0:01:30]} 19. dxe5 {[%emt 0:01:30]} Bxe5 {[%emt 0:00:30]} 20. Bg5 {[%emt 0:02:30]} Qf7 {[%emt 0:00:30]} 21. Qxf7+ {[%emt 0:05:30]} Rxf7 {[%emt 0:00:30]} 22. f3 {[%emt 0:01:30]} Raf8 {[%emt 0:04:30]} 23. a3 {[%emt 0:04:30]} a5 {[%emt 0:00:30]} 24. Kf2 {[%emt 0:07:30]} b4 {[%emt 0:01:30]} 25. axb4 {[%emt 0:01:30]} axb4 {[%emt 0:00:30]} 26. Bf4 {[%emt 0:00:30]} Bc7 {[%emt 0:04:30]} 27. Bxc7 {[%emt 0:03:30]} Rxc7 {[%emt 0:00:00]} 28. Re2 {[%emt 0:01:30]} Rb7 {[%emt 0:01:00]} 29. Ba2 {[%emt 0:05:30]} Ba4 {[%emt 0:08:14]} 30. Ke1 {[%emt 0:05:30]} Rfb8 {[%emt 0:02:25]} 31. Kf2 {[%emt 0:03:30]} bxc3 {[%emt 0:02:15]} 32. bxc3 {[%emt 0:02:30]} Rb2 {[%emt 0:00:01]} 33. Ra1 {[%emt 0:01:30]} Rxe2+ {[%emt 0:00:23]} 34. Kxe2 {[%emt 0:00:30]} Rb2+ {[%emt 0:00:30]} 35. Kf1 {[%emt 0:00:30]} Bc2 {[%emt 0:00:00]} 36. Kg1 {[%emt 0:00:30]} Bd3 {[%emt 0:00:00]} 37. Kh2 {[%emt 0:02:30]} Kf7 {[%emt 0:00:13]} 38. Kg3 {[%emt 0:01:30]} Kf6 {[%emt 0:01:13]} 39. h4 {[%emt 0:01:30]} Re2 {[%emt 0:02:01]} 40. Kh3 {[%emt 0:02:30]} Rc2 {[%emt 0:02:06]} 41. Kg3 {[%emt 0:00:49]} Rxc3 {[%emt 0:00:36]} 42. Rd1 {[%emt 0:00:59]} Ra3 {[%emt 0:00:28]} 43. Rd2 {[%emt 0:00:09]} e5 {[%emt 0:02:45]} 44. Rb2 {[%emt 0:01:20]} c3 {[%emt 0:01:14]} 45. Rb6+ {[%emt 0:00:30]} Ke7 {[%emt 0:00:30]} 46. Bb1 {[%emt 0:00:30]} Bxb1 {[%emt 0:01:48]} 47. Rxb1 {[%emt 0:00:30]} Ra2 {[%emt 0:00:30]} 48. Rc1 {[%emt 0:00:30]} d4 {[%emt 0:00:00]} 49. exd4 {[%emt 0:00:00]} exd4 {[%emt 0:00:00]} 50. Kf4 {[%emt 0:00:00]} Kd6 {[%emt 0:01:20]} 51. Kxf5 {[%emt 0:00:13]} Kd5 {[%emt 0:00:16]} 52. g4 {[%emt 0:00:30]} Kc4 {[%emt 0:00:14]} 53. h5 {[%emt 0:00:30]} d3 {[%emt 0:00:30]} 54. Kg6 {[%emt 0:00:30]} d2 {[%emt 0:00:30]} 55. Rd1 {[%emt 0:00:30]} Kd3 {[%emt 0:00:30]} 56. Kxg7 {[%emt 0:00:30]} c2 {[%emt 0:00:30]} 57. Rxd2+ {[%emt 0:00:30]} Kxd2 {[%emt 0:00:30]} 58. h6 {[%emt 0:00:30]} c1=Q {[%emt 0:00:30]} 0-1

[Event "FIDE World Cadets GU12 2022"]
[Site "Batumi"]
[Date "2022.09.23"]
[Round "7.6"]
[White "Aydogan, Arya"]
[Black "Abramkina, Veranika"]
[Result "1/2-1/2"]
[ECO "B04"]
[WhiteElo "1489"]
[BlackElo "1445"]
[Annotator "NA RC COMBH"]
[PlyCount "180"]
[EventDate "2022.09.16"]
[EventType "swiss"]
[EventCountry "GEO"]
[SourceTitle "playchess.com"]
[Source "ChessBase"]
[SourceQuality "1"]
[TimeControl "5400+30"]

1. e4 {[%emt 0:01:00]} Nf6 {[%emt 0:01:00]} 2. e5 {[%emt 0:00:30]} Nd5 {[%emt 0:00:30]} 3. d4 {[%emt 0:00:30]} d6 {[%emt 0:00:30]} 4. Nf3 {[%emt 0:00:30]} g6 {[%emt 0:00:30]} 5. Bc4 {[%emt 0:00:30]} Nb6 {[%emt 0:00:30]} 6. Bb3 {[%emt 0:00:30]} d5 {[%emt 0:00:00]} 7. O-O {[%emt 0:05:30]} Bg4 {[%emt 0:00:00]} 8. h3 {[%emt 0:04:30]} Bxf3 {[%emt 0:00:00]} 9. Qxf3 {[%emt 0:00:30]} e6 {[%emt 0:00:00]} 10. c3 {[%emt 0:01:30]} Be7 {[%emt 0:01:30]} 11. Qe2 {[%emt 0:03:30]} c5 {[%emt 0:02:30]} 12. Be3 {[%emt 0:05:30]} Nc6 {[%emt 0:03:30]} 13. Nd2 {[%emt 0:02:30]} Rc8 {[%emt 0:04:30]} 14. Rac1 {[%emt 0:03:30]} h5 {[%emt 0:02:30]} 15. g3 {[%emt 0:03:30]} Nd7 {[%emt 0:04:30]} 16. f4 {[%emt 0:04:30]} c4 {[%emt 0:02:30]} 17. Bc2 {[%emt 0:02:30]} b5 {[%emt 0:04:30]} 18. b4 {[%emt 0:05:30]} cxb3 {[%emt 0:01:30]} 19. axb3 {[%emt 0:00:00]} Qb6 {[%emt 0:15:30]} 20. Qf2 {[%emt 0:03:00]} Ba3 {[%emt 0:06:30]} 21. Rb1 {[%emt 0:04:30]} Qd8 {[%emt 0:13:30]} 22. Bd3 {[%emt 0:05:30]} Ne7 {[%emt 0:07:30]} 23. c4 {[%emt 0:03:30]} dxc4 {[%emt 0:03:30]} 24. bxc4 {[%emt 0:01:30]} Nf5 {[%emt 0:00:30]} 25. Rxb5 {[%emt 0:01:30]} Nxe3 {[%emt 0:02:30]} 26. Qxe3 {[%emt 0:00:30]} a6 {[%emt 0:03:30]} 27. Rb3 {[%emt 0:00:30]} Be7 {[%emt 0:00:00]} 28. Ne4 {[%emt 0:01:30]} O-O {[%emt 0:01:00]} 29. c5 {[%emt 0:03:30]} a5 {[%emt 0:00:40]} 30. Nd6 {[%emt 0:08:30]} Bxd6 {[%emt 0:00:51]} 31. exd6 {[%emt 0:00:30]} a4 {[%emt 0:00:00]} 32. Ra3 {[%emt 0:00:30]} h4 {[%emt 0:03:02]} 33. g4 {[%emt 0:00:30]} Ra8 {[%emt 0:01:50]} 34. Bb5 {[%emt 0:02:30]} Nf6 {[%emt 0:00:05]} 35. Rxa4 {[%emt 0:01:30]} Rxa4 {[%emt 0:01:28]} 36. Bxa4 {[%emt 0:00:30]} Qa5 {[%emt 0:00:00]} 37. Bc2 {[%emt 0:02:30]} Nd5 {[%emt 0:00:12]} 38. Qf2 {[%emt 0:04:07]} Qc3 {[%emt 0:00:39]} 39. Be4 {[%emt 0:00:46]} Rb8 {[%emt 0:05:48]} 40. Bxd5 {[%emt 0:05:15]} exd5 {[%emt 0:00:09]} 41. Qxh4 {[%emt 0:05:19]} Qxd4+ {[%emt 0:00:48]} 42. Qf2 {[%emt 0:00:30]} Qc3 {[%emt 0:00:16]} 43. Re1 {[%emt 0:02:00]} Qxh3 {[%emt 0:01:45]} 44. Qg2 {[%emt 0:00:30]} Qc3 {[%emt 0:00:30]} 45. Qf2 {[%emt 0:00:01]} Rb2 {[%emt 0:04:46]} 46. d7 {[%emt 0:01:25]} Rxf2 {[%emt 0:00:07]} 47. d8=Q+ {[%emt 0:00:30]} Kg7 {[%emt 0:00:30]} 48. Kxf2 {[%emt 0:00:00]} Qd2+ {[%emt 0:00:27]} 49. Re2 {[%emt 0:00:21]} Qxf4+ {[%emt 0:00:00]} 50. Kg2 {[%emt 0:00:30]} Qxg4+ {[%emt 0:00:02]} 51. Kf1 {[%emt 0:01:35]} Qf3+ {[%emt 0:05:35]} 52. Ke1 {[%emt 0:00:49]} Qc3+ {[%emt 0:00:14]} 53. Kf2 {[%emt 0:02:14]} Qd4+ {[%emt 0:00:07]} 54. Ke1 {[%emt 0:00:45]} Qg1+ {[%emt 0:00:46]} 55. Kd2 {[%emt 0:00:30]} Qd4+ {[%emt 0:00:00]} 56. Kc1 {[%emt 0:00:14]} Qa1+ {[%emt 0:01:03]} 57. Kc2 {[%emt 0:00:40]} Qa2+ {[%emt 0:00:30]} 58. Kd3 {[%emt 0:00:00]} Qb3+ {[%emt 0:00:25]} 59. Kd2 {[%emt 0:00:12]} Qb4+ {[%emt 0:01:21]} 60. Ke3 {[%emt 0:00:36]} Qe4+ {[%emt 0:00:14]} 61. Kf2 {[%emt 0:00:30]} Qf4+ {[%emt 0:00:30]} 62. Kg1 {[%emt 0:00:06]} Qg3+ {[%emt 0:00:46]} 63. Rg2 {[%emt 0:00:52]} Qe3+ {[%emt 0:00:28]} 64. Kh2 {[%emt 0:00:27]} Qh6+ {[%emt 0:01:04]} 65. Kg1 {[%emt 0:01:01]} Qc1+ {[%emt 0:00:09]} 66. Kf2 {[%emt 0:00:40]} Qf4+ {[%emt 0:00:11]} 67. Ke2 {[%emt 0:01:37]} Qe4+ {[%emt 0:00:30]} 68. Kf1 {[%emt 0:00:00]} Qf4+ {[%emt 0:00:31]} 69. Rf2 {[%emt 0:00:20]} Qc4+ {[%emt 0:00:01]} 70. Re2 {[%emt 0:00:34]} Qf4+ {[%emt 0:00:30]} 71. Kg1 {[%emt 0:00:28]} Qg3+ {[%emt 0:00:32]} 72. Rg2 {[%emt 0:00:40]} Qe3+ {[%emt 0:00:16]} 73. Kh2 {[%emt 0:00:33]} Qh6+ {[%emt 0:00:16]} 74. Kg1 {[%emt 0:00:33]} Qc1+ {[%emt 0:00:30]} 75. Kf2 {[%emt 0:00:30]} Qf4+ {[%emt 0:00:30]} 76. Ke2 {[%emt 0:00:30]} Qe4+ {[%emt 0:00:13]} 77. Kf1 {[%emt 0:00:14]} Qf4+ {[%emt 0:02:00]} 78. Rf2 {[%emt 0:00:30]} Qc4+ {[%emt 0:00:30]} 79. Kg1 {[%emt 0:00:02]} Qg4+ {[%emt 0:00:07]} 80. Kh2 {[%emt 0:01:10]} Qh5+ {[%emt 0:00:30]} 81. Kg3 {[%emt 0:00:00]} Qe5+ {[%emt 0:00:00]} 82. Kg2 {[%emt 0:00:08]} Qe4+ {[%emt 0:00:03]} 83. Kh2 {[%emt 0:01:56]} Qe5+ {[%emt 0:00:06]} 84. Kh1 {[%emt 0:00:00]} Qh5+ {[%emt 0:00:42]} 85. Kg1 Qd1+ 86. Rf1 Qg4+ 87. Kf2 Qf4+ 88. Ke2 Qe4+ 89. Kf2 Qf4+ 90. Kg2 Qg4+ 1/2-1/2

[Event "FIDE World Cadets GU12 2022"]
[Site "Batumi"]
[Date "2022.09.23"]
[Round "7.7"]
[White "Saparya Ghosh"]
[Black "Altynbek, Aiaru"]
[Result "1-0"]
[ECO "D00"]
[WhiteElo "1563"]
[BlackElo "1373"]
[Annotator "NA RC COMBH"]
[PlyCount "67"]
[EventDate "2022.09.16"]
[EventType "swiss"]
[EventCountry "GEO"]
[SourceTitle "playchess.com"]
[Source "ChessBase"]
[SourceQuality "1"]
[TimeControl "5400+30"]

1. d4 {[%emt 0:01:00]} d5 {[%emt 0:01:00]} 2. Bf4 {[%emt 0:00:30]} Nf6 {[%emt 0:04:30]} 3. e3 {[%emt 0:01:30]} c6 {[%emt 0:04:30]} 4. Nc3 {[%emt 0:01:30]} Bf5 {[%emt 0:01:30]} 5. f3 {[%emt 0:04:30]} h5 {[%emt 0:10:30]} 6. Bd3 {[%emt 0:03:30]} e6 {[%emt 0:05:30]} 7. Bxf5 {[%emt 0:09:30]} exf5 {[%emt 0:01:30]} 8. Qd3 {[%emt 0:00:30]} g6 {[%emt 0:01:30]} 9. Nh3 {[%emt 0:07:30]} Nbd7 {[%emt 0:03:30]} 10. O-O {[%emt 0:05:30]} Bg7 {[%emt 0:08:30]} 11. e4 {[%emt 0:04:30]} dxe4 {[%emt 0:02:30]} 12. fxe4 {[%emt 0:00:30]} fxe4 {[%emt 0:01:30]} 13. Nxe4 {[%emt 0:00:30]} Nxe4 {[%emt 0:24:30]} 14. Qxe4+ {[%emt 0:00:30]} Qe7 {[%emt 0:00:30]} 15. Rae1 {[%emt 0:08:30]} Qxe4 {[%emt 0:01:30]} 16. Rxe4+ {[%emt 0:03:30]} Kd8 {[%emt 0:03:30]} 17. Ng5 {[%emt 0:02:30]} f5 {[%emt 0:07:40]} 18. Re2 {[%emt 0:03:30]} Kc8 {[%emt 0:05:05]} 19. Nf7 {[%emt 0:00:30]} Bxd4+ {[%emt 0:04:08]} 20. Kh1 {[%emt 0:00:30]} b5 {[%emt 0:01:06]} 21. Nxh8 {[%emt 0:01:30]} Bxh8 {[%emt 0:00:08]} 22. Re8+ {[%emt 0:00:30]} Kb7 {[%emt 0:00:30]} 23. Re7 {[%emt 0:00:30]} Rd8 {[%emt 0:01:24]} 24. Rd1 {[%emt 0:00:30]} Kc8 {[%emt 0:00:00]} 25. Bg5 {[%emt 0:00:30]} Bxb2 {[%emt 0:01:44]} 26. Rf7 {[%emt 0:00:30]} Re8 {[%emt 0:03:11]} 27. Rfxd7 {[%emt 0:00:00]} Re2 {[%emt 0:00:43]} 28. R7d2 {[%emt 0:00:00]} Re4 {[%emt 0:00:08]} 29. h3 {[%emt 0:01:30]} Be5 {[%emt 0:00:16]} 30. Rd7 {[%emt 0:00:30]} Bc7 {[%emt 0:00:41]} 31. Bd8 {[%emt 0:00:00]} Bg3 {[%emt 0:00:29]} 32. Rxa7 {[%emt 0:00:00]} f4 {[%emt 0:00:39]} 33. Re7 {[%emt 0:01:30]} Rc4 {[%emt 0:00:37]} 34. Bb6 {[%emt 0:00:00]} 1-0

[Event "FIDE World Cadets GU12 2022"]
[Site "Batumi"]
[Date "2022.09.23"]
[Round "7.9"]
[White "Maklakova, Naomi"]
[Black "Assylkhan, Asiya"]
[Result "1-0"]
[ECO "D02"]
[WhiteElo "1635"]
[BlackElo "1424"]
[Annotator "NA RC COMBH"]
[PlyCount "54"]
[EventDate "2022.09.16"]
[EventType "swiss"]
[EventCountry "GEO"]
[SourceTitle "playchess.com"]
[Source "ChessBase"]
[SourceQuality "1"]
[TimeControl "5400+30"]

1. d4 {[%emt 0:01:00]} d5 {[%emt 0:01:00]} 2. Nf3 {[%emt 0:00:30]} Nf6 {[%emt 0:00:30]} 3. c3 {[%emt 0:00:30]} e6 {[%emt 0:00:00]} 4. Bf4 {[%emt 0:01:30]} Bd6 {[%emt 0:00:00]} 5. Bg3 {[%emt 0:00:30]} c5 {[%emt 0:00:30]} 6. e3 {[%emt 0:00:30]} Qc7 {[%emt 0:00:00]} 7. Na3 {[%emt 0:07:30]} Bxg3 {[%emt 0:04:00]} 8. hxg3 {[%emt 0:01:30]} Nbd7 {[%emt 0:09:30]} 9. Nb5 {[%emt 0:17:30]} Qb6 {[%emt 0:00:30]} 10. dxc5 {[%emt 0:13:30]} Nxc5 {[%emt 0:03:30]} 11. Qd4 {[%emt 0:10:30]} a6 {[%emt 0:11:30]} 12. b4 {[%emt 0:01:30]} axb5 {[%emt 0:00:30]} 13. bxc5 {[%emt 0:00:30]} Qa5 {[%emt 0:00:30]} 14. Qb4 {[%emt 0:00:30]} Bd7 {[%emt 0:02:30]} 15. Nd4 {[%emt 0:02:30]} Ne4 {[%emt 0:06:30]} 16. Bxb5 {[%emt 0:04:30]} Nxc3 {[%emt 0:01:30]} 17. Bxd7+ {[%emt 0:00:30]} Kxd7 {[%emt 0:00:30]} 18. Qxb7+ {[%emt 0:00:00]} Qc7 {[%emt 0:10:30]} 19. c6+ {[%emt 0:03:00]} Kd6 {[%emt 0:00:30]} 20. Qb4+ {[%emt 0:00:30]} Ke5 {[%emt 0:00:00]} 21. Qxc3 {[%emt 0:05:30]} Qa5 {[%emt 0:00:00]} 22. Qxa5 {[%emt 0:00:30]} Rxa5 {[%emt 0:00:30]} 23. O-O {[%emt 0:00:30]} Kd6 {[%emt 0:00:00]} 24. Rfc1 {[%emt 0:00:30]} Rc8 {[%emt 0:00:00]} 25. a4 {[%emt 0:00:30]} Kc7 {[%emt 0:02:30]} 26. Nb5+ {[%emt 0:00:30]} Kb6 {[%emt 0:00:30]} 27. c7 {[%emt 0:00:30]} Rca8 {[%emt 0:00:30]} 1-0